Cogmind - Beta 9.6 @@@ ROGUE MODE // 2020.06.14 @ 09:27:26 // Winter2019/RPGLIKE Player: Wololo Result: Destroyed by G-47 Trooper with Particle Gun Performance ------------- Evolutions (3) 1500 Regions Visited (5) 1000 Robots Destroyed (42) 210 Value Destroyed (1083) 1083 Prototype IDs (3) 60 Alien Tech Used (0) 0 Bonus (33) 33 TOTAL SCORE: 3886 Bonus ------- High Alert Combat Kills 33 Cogmind --------- Core Integrity 0/1100 Matter 270/300 Energy 364/365 System Corruption 0% Temperature Cool (167) Movement Walking (126) Location -7/Lower Caves Parts ------- > --- POWER (1) -------- Improved Ion Engine > --- PROPULSION (3) --- Aluminum Leg Improved Titanium Leg Improved Titanium Leg > --- UTILITY (4) ------ Advanced Sensor Array Targeting Computer Targeting Computer Energy Filter > --- WEAPON (2) ------- Heavy Particle Gun Heavy Particle Cannon > --- INVENTORY (5) ---- Core Analyzer Gatling Laser Heavy Missile Launcher Improved Datajack Peak State ------------ > --- POWER ------------ Improved Ion Engine > --- PROPULSION ------- Improved Titanium Leg Improved Titanium Leg Xenon Bombardment Thruster > --- UTILITY ---------- Advanced Sensor Array Targeting Computer Targeting Computer Energy Filter > --- WEAPON ----------- Heavy Particle Gun Heavy Particle Cannon > --- INVENTORY -------- Terrain Scan Processor Gatling Laser Heavy Missile Launcher [Rating: 31] Favorites ----------- Power Improved Ion Engine Engine Improved Ion Engine Propulsion Light Treads Treads Light Treads Leg Improved Titanium Leg Flight Unit Xenon Bombardment Thruster Utility Targeting Computer Device Advanced Sensor Array Processor Targeting Computer Weapon EM Pulse Gun Energy Gun EM Pulse Gun Energy Cannon Heavy Particle Cannon Ballistic Gun Light Assault Rifle Launcher Grenade Launcher Build | -11 -10 -9 -8 -7 -7 ------- Run | Scr Mat Mat Mat Fac Low Slots Evolved 6 | 3 . 1 1 1 . Power . | . . . . . . Propulsion 2 | 1 . . . 1 . Utility 3 | 1 . 1 1 . . Weapon 1 | 1 . . . . . Parts Attached 31 | 4 3 4 13 7 . Power 2 | 1 . 1 . . . Engine 2 | 1 . 1 . . . Core . | . . . . . . Reactor . | . . . . . . Propulsion 10 | 2 . . 2 6 . Treads 2 | 2 . . . . . Leg 5 | . . . 2 3 . Wheel . | . . . . . . Hover . | . . . . . . Flight 3 | . . . . 3 . Utility 5 | . 2 1 2 . . Device 3 | . . 1 2 . . Storage . | . . . . . . Processor 2 | . 2 . . . . Hackware . | . . . . . . Protection . | . . . . . . Artifact . | . . . . . . Weapon 14 | 1 1 2 9 1 . Energy Gun 4 | 1 . . 3 . . Energy Cannon 3 | . . . 2 1 . Ballistic Gun 3 | . 1 1 1 . . Ballistic Cannon . | . . . . . . Launcher 4 | . . 1 3 . . Special Weapon . | . . . . . . Impact Weapon . | . . . . . . Slashing Weapon . | . . . . . . Piercing Weapon . | . . . . . . Special Melee Weapon . | . . . . . . Unidentified Prototypes 1 | . . . 1 . . Parts Lost . | . . . . . . Power . | . . . . . . Propulsion . | . . . . . . Utility . | . . . . . . Weapon . | . . . . . . Highest Loss Streak . | . . . . . . Average Slot Usage (%) 96 | . 91 99 100 92 100 Engine 11 | . 14 12 11 10 10 Treads 15 | . 28 25 17 . . Leg 7 | . . . 7 14 30 Flight 2 | . . . . 7 . Device 12 | . . 11 12 20 20 Processor 23 | . 25 25 24 20 20 Energy Gun 10 | . 14 11 4 14 10 Energy Cannon 4 | . . . 8 5 10 Ballistic Gun 6 | . 8 12 9 . . Naked Turns . | . . . . . . Heaviest Build 20 | 7 8 14 20 20 20 Greatest Support 55 | 40 40 40 45 55 55 Greatest Overweight (x) 2 | . . . . 2 . Average Overweight (x) . | . . . . . . Largest Inventory Capacity 5 | 2 2 3 4 4 5 Average Capacity 3 | 2 2 2 3 4 4 Most Carried 4 | 2 2 3 4 4 4 Average Carried 2 | . 1 1 3 3 4 Final Capacity 5 | 2 2 3 4 4 5 Final Carried 4 | 2 2 2 4 4 4 Class Distribution -------------------- 100% | Mutant Dominant Class ---------------- Mutant | -10/Materials Mutant | -9/Materials Mutant | -8/Materials Mutant | -7/Factory Mutant | -7/Lower Caves Resources | -11 -10 -9 -8 -7 -7 ----------- Run | Scr Mat Mat Mat Fac Low Matter Collected 711 | 154 66 162 71 258 . Remotely . | . . . . . . Salvage Created 945 | . 165 233 281 163 103 Parts 91 | . 19 41 24 5 2 Haulers Intercepted . | . . . . . . Recyclers Shooed 2 | . . 1 1 . . Parts Field Recycled . | . . . . . . Retrieved Matter . | . . . . . . Parts Self-Destructed 1 | . . . . . 1 Prevented . | . . . . . . Kills | -11 -10 -9 -8 -7 -7 ------- Run | Scr Mat Mat Mat Fac Low Combat Hostiles Destroyed 32 | . 3 13 12 2 2 Guns 18 | . 2 11 2 2 1 Cannons 5 | . . . 5 . . AOE 8 | . 1 2 5 . . Classes Destroyed 10 | . 5 3 1 . 1 Worker 3 | . 1 . 2 . . Builder 1 | . 1 . . . . Recycler 3 | . 1 1 1 . . Operator 1 | . . 1 . . . Watcher 2 | . 2 . . . . Swarmer 14 | . 3 7 3 . 1 Grunt 10 | . . 4 5 1 . Duelist 1 | . . . . . 1 Sentry 6 | . . 2 3 1 . Hunter 1 | . . . 1 . . Best Kill Streak 5 | . 4 4 5 1 2 Combat Bots Only 5 | . 2 4 5 1 2 Max Kills in Single Turn 3 | . 2 2 3 1 1 Gunslinging . | . . . . . . Exploded 2 | . 1 2 2 . . Melee . | . . . . . . Uniques/NPCs Destroyed . | . . . . . . Combat | -11 -10 -9 -8 -7 -7 -------- Run | Scr Mat Mat Mat Fac Low Damage Taken 2269 | . 299 427 786 336 421 Core 1864 | . 244 343 645 280 352 Absorbed by Shields . | . . . . . . Redirected to Core 1371 | . 178 270 507 162 254 Core Remaining (%) 81 | 100 74 100 52 . . Volleys Fired 105 | . 21 39 32 8 5 Largest 2 | . 2 2 2 2 2 Hottest 130 | . 60 63 120 130 130 Shots Fired 195 | . 37 70 62 16 10 Gun 158 | . 37 69 33 14 5 Cannon 28 | . . . 21 2 5 Launcher 9 | . . 1 8 . . Special . | . . . . . . Kinetic 73 | . 16 39 18 . . Thermal 41 | . . . 21 10 10 Explosive 9 | . . 1 8 . . Electromagnetic 72 | . 21 30 15 6 . Robot Hit Streak 25 | . 5 22 25 19 8 Robot Miss Streak 5 | . 3 5 2 1 1 Penetration Max . | . . . . . . Secondary Targets 3 | . . 3 . . . Max Gunslinging Chain 1 | . . 1 . . . Shots Hit Robots 134 | . 20 48 44 14 8 Core Hits 75 | . 10 24 34 5 2 Critical Hits 1 | . . 1 . . . Critical Kills . | . . . . . . Critical Parts Destroyed 1 | . . 1 . . . Melee Attacks . | . . . . . . Impact . | . . . . . . Slashing . | . . . . . . Piercing . | . . . . . . Sneak Attacks . | . . . . . . Combat Hostiles . | . . . . . . Follow-up Attacks . | . . . . . . Damage Inflicted 3038 | . 356 663 1514 312 193 Guns 1408 | . 245 549 311 210 93 Cannons 450 | . . . 300 50 100 Explosions 1179 | . 110 114 903 52 . Melee . | . . . . . . Ramming 1 | . 1 . . . . Kinetic 476 | . 58 273 145 . . Thermal 993 | . 110 78 380 232 193 Explosive 859 | . . 36 823 . . Electromagnetic 709 | . 187 276 166 80 . Impact . | . . . . . . Slashing . | . . . . . . Piercing . | . . . . . . Highest Corruption . | . . . . . . Average Corruption . | . . . . . . Corruption Purged . | . . . . . . Overload Shots . | . . . . . . Overflow Damage 99 | . 15 16 68 . . Projectiles 23 | . . . 23 . . Explosions 76 | . 15 16 45 . . Melee . | . . . . . . Knockbacks . | . . . . . . Impact . | . . . . . . Kinetic . | . . . . . . Secondary . | . . . . . . Self-Inflicted Damage 315 | . 74 . 241 . . Shots 6 | . 2 . 4 . . Rammed 1 | . 1 . . . . Targets Rammed 1 | . 1 . . . . Kicked . | . . . . . . Crushed . | . . . . . . Highest Temperature 216 | . 32 62 216 102 177 Average Temperature 41 | . 14 21 56 57 98 Received Heat Transfer 489 | . . 63 216 102 108 Siege Activations . | . . . . . . Robots Corrupted . | . . . . . . Combat Hostiles . | . . . . . . Parts Fried 2 | . 1 . 1 . . Impact Corruptions . | . . . . . . Robots Melted 1 | . . . . . 1 Combat Hostiles 1 | . . . . . 1 Parts Melted 4 | . . . 1 2 1 Heat Transferred 1510 | . 200 50 544 383 333 Parts Sabotaged . | . . . . . . Parts Stolen . | . . . . . . Parts Stripped . | . . . . . . Power Chain Reactions 5 | . 2 1 1 1 . Missiles Intercepted . | . . . . . . Alert | -11 -10 -9 -8 -7 -7 ------- Run | Scr Mat Mat Mat Fac Low Peak Influence 483 | . 172 284 483 277 . Average Influence 169 | . 53 131 312 167 . Maximum Alert Level 2 | . . 1 2 1 . Low Security (%) 60 | 100 100 80 28 41 . Level 1 35 | . . 19 56 58 . Level 2 3 | . . . 15 . . Level 3 . | . . . . . . Level 4 . | . . . . . . Level 5 . | . . . . . . High Security . | . . . . . . Max Security . | . . . . . . Squads Dispatched 6 | . . 3 2 1 . Investigation 2 | . . 1 1 . . Extermination . | . . . . . . Reinforcement 4 | . . 2 1 1 . Assault . | . . . . . . Garrison . | . . . . . . Intercept . | . . . . . . Construction Impeded 1 | . . . 1 . . Haulers Reinforced 1 | . . . . 1 . Stealth | -11 -10 -9 -8 -7 -7 --------- Run | Scr Mat Mat Mat Fac Low Distress Signals 3 | . 2 1 . . . Communications Jammed . | . . . . . . Distress Signals . | . . . . . . Times Spotted 62 | . 18 18 20 2 4 Peak Tracking Total 9 | . 6 4 4 1 9 Tactical Retreats 5 | . 2 1 2 . . Traps | -11 -10 -9 -8 -7 -7 ------- Run | Scr Mat Mat Mat Fac Low Traps Triggered . | . . . . . . Indirectly . | . . . . . . Trap Hack Attempts . | . . . . . . Triggered . | . . . . . . Disarmed . | . . . . . . Reprogrammed . | . . . . . . Reused . | . . . . . . Traps Extracted . | . . . . . . Installed . | . . . . . . Triggered . | . . . . . . Machines | -11 -10 -9 -8 -7 -7 ---------- Run | Scr Mat Mat Mat Fac Low Machines Disabled 5 | . 2 . 3 . . Max in Single Turn 2 | . 2 . 2 . . Machines Sabotaged . | . . . . . . Garrisons Compromised . | . . . . . . Overloaded Fab Kills . | . . . . . . Fab Network Shutdowns . | . . . . . . Hacking | -11 -10 -9 -8 -7 -7 --------- Run | Scr Mat Mat Mat Fac Low Machines Accessed 9 | . 3 1 4 1 . Terminals 8 | . 3 1 3 1 . Fabricators . | . . . . . . Repair Stations . | . . . . . . Recycling Units . | . . . . . . Scanalyzers 1 | . . . 1 . . Garrison Access . | . . . . . . Total Hacks 25 | . 5 3 15 2 . Successful 11 | . 4 1 5 1 . Failed 14 | . 1 2 10 1 . Catastrophic . | . . . . . . Database Lockouts . | . . . . . . Manual . | . . . . . . Terminals 24 | . 5 3 14 2 . Fabricators . | . . . . . . Repair Stations . | . . . . . . Recycling Units . | . . . . . . Scanalyzers 1 | . . . 1 . . Garrison Access . | . . . . . . Terminal Hacks 11 | . 4 1 5 1 . Record 2 | . 1 . 1 . . Robot Analysis 1 | . . . 1 . . Prototype ID Bank 1 | . . . 1 . . Hauler Manifests 3 | . 1 . 1 1 . Zone Layout 4 | . 2 1 1 . . Fabricator Hacks . | . . . . . . Repair Station Hacks . | . . . . . . Recycling Unit Hacks . | . . . . . . Scanalyzer . | . . . . . . Garrison Access Hacks . | . . . . . . Unauthorized Hacks . | . . . . . . Terminals . | . . . . . . Fabricators . | . . . . . . Repair Stations . | . . . . . . Recycling Units . | . . . . . . Scanalyzers . | . . . . . . Garrison Access . | . . . . . . Data Cores Recovered . | . . . . . . Used . | . . . . . . Hacking Detections 4 | . . 1 3 . . Full Trace Events 1 | . . . 1 . . Feedback Events . | . . . . . . Feedback Blocked . | . . . . . . Robot Schematics Acquired . | . . . . . . Robots Built . | . . . . . . Matter . | . . . . . . Time . | . . . . . . Total Robot Build Rating . | . . . . . . Part Schematics Acquired . | . . . . . . Parts Built . | . . . . . . Matter . | . . . . . . Time . | . . . . . . Total Part Build Rating . | . . . . . . Parts Repaired . | . . . . . . Time . | . . . . . . Parts Recycled . | . . . . . . Recycled Matter . | . . . . . . Retrieved Matter . | . . . . . . Retrieved Components . | . . . . . . Parts Scanalyzed . | . . . . . . Part Schematics Acquired . | . . . . . . Parts Damaged . | . . . . . . Bothacking | -11 -10 -9 -8 -7 -7 ------------ Run | Scr Mat Mat Mat Fac Low Used RIF Installer . | . . . . . . Robots Hacked . | . . . . . . Non-combat . | . . . . . . Combat . | . . . . . . Robot Hacks Applied . | . . . . . . Relay Couplers Released . | . . . . . . Robots Rewired . | . . . . . . Allies Hacked . | . . . . . . Hacks Repelled . | . . . . . . Allies | -11 -10 -9 -8 -7 -7 -------- Run | Scr Mat Mat Mat Fac Low Total Allies . | . . . . . . Largest Group . | . . . . . . Highest-Rated Group . | . . . . . . Highest-Rated Ally . | . . . . . . Total Orders . | . . . . . . Ally Attacks . | . . . . . . Total Damage . | . . . . . . Kills . | . . . . . . Allies Corrupted . | . . . . . . Allies Melted . | . . . . . . Intel | -11 -10 -9 -8 -7 -7 ------- Run | Scr Mat Mat Mat Fac Low Robot Analysis Total 1 | . . . 1 . . Derelict Logs Recovered . | . . . . . . Drone Launches . | . . . . . . Drone Recoveries . | . . . . . . Exploration | -11 -10 -9 -8 -7 -7 ------------- Run | Scr Mat Mat Mat Fac Low Turns Passed 2572 | 66 461 577 617 684 167 Spaces Moved 1455 | 40 231 261 312 491 120 Core 9 | 6 . . . 3 . Treads 752 | 34 231 261 226 . . Legs 475 | . . . 86 269 120 Wheels . | . . . . . . Hover . | . . . . . . Flight 219 | . . . . 219 . Fastest Speed 34 | 50 160 160 130 34 126 Average Speed 131 | 143 160 160 151 91 126 Slowest Speed 160 | 160 160 160 160 150 126 Overloaded Moves . | . . . . . . Propulsion Burnouts . | . . . . . . Robots Hopped 1 | . . . . 1 . Cave-ins Triggered . | . . . . . . Exploration Rate (%) 21 | 3 48 26 33 7 12 Regions Visited 5 Branch Regions 1 Pre-discovered Areas . | . . . . . . Known Exits Taken . | . . . . . . Unknown Exits Taken 5 | 1 1 1 1 1 . Scrap Searched . | . . . . . . Spaces Dug . | . . . . . . Terrain Destroyed 157 | . 41 12 92 12 . Melee . | . . . . . . Projectile 7 | . . . 7 . . AOE 150 | . 41 12 85 12 . Actions | -11 -10 -9 -8 -7 -7 --------- Run | Scr Mat Mat Mat Fac Low Total 1925 | 49 289 355 392 714 126 Wait 234 | . 22 21 7 183 1 Move 1448 | 39 230 260 311 488 120 Hop 1 | . . . . 1 . Pick Up 41 | 6 5 4 12 14 . Fast Attach . | . . . . . . Attach 16 | 4 3 2 2 5 . Detach . | . . . . . . Swap 15 | . . 2 11 2 . Drop 27 | . 2 3 9 13 . Fire 105 | . 21 39 32 8 5 Melee . | . . . . . . Ram . | . . . . . . Kick . | . . . . . . Crush 1 | . 1 . . . . Escape Stasis . | . . . . . . Rewire . | . . . . . . Trap . | . . . . . . Miscellaneous 37 | . 5 24 8 . . Route ------- -11/Scrapyard -10/Materials (discovered 2 exits: *Mat / [*Min]) -9/Materials (discovered 3 exits: *Mat / [*Min x2]) -8/Materials -7/Factory -7/Lower Caves History --------- Turn | Location | Event 1 | -11/Scrapyard | Upgraded with Propulsion slot (x1) 1 | -11/Scrapyard | Upgraded with Utility slot (x1) 1 | -11/Scrapyard | Upgraded with Weapon slot (x1) 15 | -11/Scrapyard | Discovered new exit (range 17) 67 | -11/Scrapyard | Entered Materials 174 | -10/Materials | Discovered new exit (range 17) 301 | -10/Materials | Build established: Mutant 454 | -10/Materials | Discovered new exit (range 11) 528 | -10/Materials | Entered another Materials area 530 | -9/Materials | Reached level 2 535 | -9/Materials | Upgraded with Utility slot (x1) 780 | -9/Materials | Discovered new exit (range 18) 891 | -9/Materials | Reached level 3 976 | -9/Materials | Discovered new exit (range 12) 1034 | -9/Materials | Discovered new exit (range 18) 1105 | -9/Materials | Entered another Materials area 1107 | -8/Materials | Reached level 4 1567 | -8/Materials | Reached level 5 1630 | -8/Materials | Core integrity fell below 50% 1682 | -8/Materials | Upgraded with Utility slot (x1) 1684 | -8/Materials | Discovered new exit (range 17) 1722 | -8/Materials | Entered Factory 1724 | -7/Factory | Reached level 6 1724 | -7/Factory | Upgraded with Propulsion slot (x1) 2034 | -7/Factory | Core integrity fell below 50% 2125 | -7/Factory | Discovered new exit (range 6) 2406 | -7/Factory | Entered Lower Caves 2408 | -7/Lower Caves | Reached level 7 2552 | -7/Lower Caves | Attracted the attention of an 0b10 outpost 2562 | -7/Lower Caves | Core integrity fell below 20% 2573 | -7/Lower Caves | Destroyed by G-47 Trooper with Particle Gun Last Messages --------------- R-06 Scavenger collects Terrain Scan Processor. Particle Gun melted. G-47 Trooper destroyed. A-02 Transporter calls for reinforcements. ALERT: Hostile activity reported, dispatching reinforcements to area. Dropped Hvy. Missile Launcher. Acquired Aluminum Leg. Acquired Hvy. Missile Launcher. LOCATION=UNKNOWN GOAL=ESCAPE Reached level 7. Upgraded: Inventory Capacity (+1) Y-64 Sentinel: "DETECTED UNIDENTIFIED DERELICT." Slug penetrates Wall. S-27 Virus destroyed. Y-64 Sentinel: "REQUESTING BACKUP." Slug penetrates Wall. L-41 Fighter critical meltdown. Axe melted. Autogun fries itself beyond repair. Map ----- +----------------------------------------------------+ | ?????????????????????????????????????????????????? | | ?????????????????????????????????????????????????? | | ?????????????????????????????????????????????????? | | ?????????????????????????????????????????????????? | | ?????????????????????????????????????????????????? | | ?????????????????????????????????????????????????? | | ?????????????????????????????????????????????????? | | ?????????????????????????????????????????????????? | | ?????????????????????????????????????????????????? | | ?????????????????????????????????????????????????? | | ?????????????????????????????????????????????????? | | ?????????????????????????????????????????????????? | | ?????????????????????????????????????????????????? | | ????????????????????????###???####???????????????? | | ?????????????????????#### ##??# ##??###?????????? | | ?????????????????????# ##?# #??# ##????????? | | ?????????????????????# ### ##?# ####?????? | | ?????????????????????# ## ### #?????? | | ?????????????????????## #?????? | | ??????????????????????## #??????? | | ???????????????????????### ##??????? | | ????????????????????????## ####???????? | | ????????????????????????# ##?????????? | | ????????????????????????# #?????????? | | ????????????????????????# #?????????? | | ????????????????????????#@ ###?????????? | | ???????????????????????## #???????????? | | ??????????????????????## %! ## ##??????????? | | ??????????????????????# ### #####??????? | | ?????????????????????## ### #??????? | | ?????????????????????# #??????? | | ????????????????????## g####### #??????? | | ??????????? ???????# ??????# ##### #??????? | | ???????????? ??????# ??????# ##???## #??????? | | ???????????? ?????# ??????# ##????## ##??????? | | ????????????? ##?###Y ?????# #????## ##??????? | | ??????????????# ## #????# ###?## #??????? | | ??????????????# #????# ## ## ##?????? | | ???????????????? ####### # #?????? | | ????????????????? % ##?????? | | ?????????????????## ###### ##??????? | | ?????????????????## #??######### #???????? | | ?????????????????# #??# ######### #???????? | | ??????????????# ## #### ##### #???????? | | ??????????????# ## ###?????? | | ????????????????### #?????? | | ??????????????????## ########### #?????? | | ???????????????????# #?????????## #?????? | | ???????????????????# ??????????###### #?????? | | ???????????????????## ??????????????###?????? | +----------------------------------------------------+ Best States ------------- Heat Dissipation 43 Energy Generation 12 Energy Capacity 365 Matter Stores 300 Matter Capacity 300 Sight Range 19 Robot Scan Range 22 Terrain Scan Density 210 Evasion (%) 63 Targeting Accuracy 10 Recoil Reduction 2 Energy Filtering 30 Item Schematics ----------------- None Robot Schematics ------------------ None Fabricated ------------ Nothing Alien Tech Used ----------------- None Achievements -------------- None Challenges ------------ None RPGLIKE | -11 -10 -9 -8 -7 -7 --------- Run | Scr Mat Mat Mat Fac Low Levels Raised 6 | . . 2 2 1 1 XP Earned 12530 | 3000 570 3150 3360 1750 700 XP Spent 11750 | 2825 . 3130 3025 1520 1250 Upgrades 38 | 10 . 13 10 4 1 Propulsion Slot 2 | 1 . . . 1 . Utility Slot 3 | 1 . 1 1 . . Weapon Slot 1 | 1 . . . . . Core Integrity 10 | . . 8 . 2 . Heat Dissipation 3 | . . . 3 . . Energy Storage 2 | . . 1 1 . . Mass Support 1 | . . . 1 . . Inventory Capacity 5 | 2 . 1 1 . 1 Sight Range 3 | 2 . 1 . . . Sensor Range 3 | 2 . . 1 . . Terrain Scan Density 2 | 1 . . 1 . . Ranged Accuracy 2 | . . 1 . 1 . Melee Accuracy 1 | . . . 1 . . Protomatter Created 514 | . 34 245 235 . . Integrity Restored 755 | . 90 497 168 . . Core 755 | . 90 497 168 . . Protomatter Decayed 107 | . 4 63 40 . . Game ------ Seed MetafiberArchitectMapper Manual? 0 Play Time 00:52:32 Cumulative 8.3 hours Start 2020.06.12 @ 21:34:02 End 2020.06.14 @ 09:27:26 Sessions 3 Manual Loads 0 Difficulty Rogue Special Mode Winter2019/RPGLIKE Game No. 13 Rogue 9 Adventurer 4 Explorer 0 Win Type - Total 0 Types 0/0/0/0/0/0/0 Lore% 13 Gallery% 14 Achievement% 10 Wizard Run 0 Options --------- ASCII 0 Keyboard 0 Movement Mouse Keybinds 0 Fullscreen 2 Font 12/Terminus Map View 83x54 Tactical HUD 0 Map Filters NONE Filters NONE Steam 1 RUN: d4e74ab8-3c4a-436d-b060-3486d859e6fc